[Event "Early-Titled-Tuesday-Blitz-March-05-2024"]
[Site "Chess.com"]
[Date "2024.03.05"]
[Round "10"]
[White "FREDERICKtheMATE"]
[Black "bancsoo"]
[Result "0-1"]
[WhiteElo "2721"]
[BlackElo "2916"]
[TimeControl "180+1"]
[EndTime "9:58:11 PST"]
[Termination "bancsoo won by checkmate"]

1. d4 {[%clk 0:03:00.9]} 1... d5 {[%clk 0:02:58.9]} 2. c4 {[%clk 0:03:00.7]}
2... c6 {[%clk 0:02:59.1]} 3. Nc3 {[%clk 0:03:00.9]} 3... Nf6 {[%clk 0:02:59.3]}
4. Nf3 {[%clk 0:03:01.5]} 4... e6 {[%clk 0:02:58.6]} 5. e3 {[%clk 0:03:01.7]}
5... a6 {[%clk 0:02:58.9]} 6. a3 {[%clk 0:02:54.9]} 6... Nbd7 {[%clk 0:02:57.7]}
7. c5 {[%clk 0:02:54.8]} 7... g6 {[%clk 0:02:54.1]} 8. Bd3 {[%clk 0:02:53.5]}
8... Bg7 {[%clk 0:02:54.7]} 9. O-O {[%clk 0:02:53.7]} 9... O-O {[%clk
0:02:55.3]} 10. b4 {[%clk 0:02:51.9]} 10... Qe7 {[%clk 0:02:51.7]} 11. Bb2
{[%clk 0:02:48.4]} 11... e5 {[%clk 0:02:50.6]} 12. dxe5 {[%clk 0:02:43.9]} 12...
Nxe5 {[%clk 0:02:50.8]} 13. Nd4 {[%clk 0:02:43.3]} 13... h5 {[%clk 0:02:44.1]}
14. Be2 {[%clk 0:02:39.7]} 14... h4 {[%clk 0:02:40.7]} 15. Na4 {[%clk
0:02:25.9]} 15... Bd7 {[%clk 0:02:34.4]} 16. Nb6 {[%clk 0:02:25.4]} 16... Rae8
{[%clk 0:02:35]} 17. h3 {[%clk 0:02:17.7]} 17... Ne4 {[%clk 0:02:33.2]} 18. f4
{[%clk 0:02:13.7]} 18... Nc4 {[%clk 0:02:23.6]} 19. Bxc4 {[%clk 0:02:03.9]}
19... dxc4 {[%clk 0:02:23.7]} 20. Nxc4 {[%clk 0:02:04.5]} 20... Be6 {[%clk
0:02:01.2]} 21. Qc2 {[%clk 0:02:00.3]} 21... Bxc4 {[%clk 0:02:00.4]} 22. Qxc4
{[%clk 0:02:01.2]} 22... Nd2 {[%clk 0:02:00.7]} 23. Qd3 {[%clk 0:01:53.2]} 23...
Nxf1 {[%clk 0:02:00]} 24. Rxf1 {[%clk 0:01:48.5]} 24... Qxe3+ {[%clk 0:01:59.7]}
25. Qxe3 {[%clk 0:01:49.4]} 25... Rxe3 {[%clk 0:02:00.2]} 26. Nc2 {[%clk
0:01:43.2]} 26... Rd3 {[%clk 0:01:45.4]} 27. Bxg7 {[%clk 0:01:40.2]} 27... Kxg7
{[%clk 0:01:46.3]} 28. Rf2 {[%clk 0:01:39.5]} 28... Re8 {[%clk 0:01:45.1]} 29.
Kh2 {[%clk 0:01:24.2]} 29... f5 {[%clk 0:01:44.8]} 30. Kg1 {[%clk 0:01:22.8]}
30... Re4 {[%clk 0:01:43.4]} 31. a4 {[%clk 0:01:20.4]} 31... Kf6 {[%clk
0:01:42.9]} 32. a5 {[%clk 0:01:20.5]} 32... Ke6 {[%clk 0:01:43.2]} 33. Kh2
{[%clk 0:01:08.2]} 33... Kd5 {[%clk 0:01:43.5]} 34. Kg1 {[%clk 0:01:09.1]} 34...
Kc4 {[%clk 0:01:43.7]} 35. Kh2 {[%clk 0:01:10]} 35... Kc3 {[%clk 0:01:43.9]} 36.
Kg1 {[%clk 0:01:08.4]} 36... Rd2 {[%clk 0:01:43.8]} 37. Rxd2 {[%clk 0:01:08.5]}
37... Kxd2 {[%clk 0:01:44]} 38. Na3 {[%clk 0:01:06.8]} 38... Rxb4 {[%clk
0:01:43.7]} 39. Kf2 {[%clk 0:01:06]} 39... Kc3 {[%clk 0:01:41.6]} 40. Kf3 {[%clk
0:01:06.9]} 40... Kb2 {[%clk 0:01:41.3]} 41. Kf2 {[%clk 0:01:07.8]} 41... Kxa3
{[%clk 0:01:41.7]} 42. Kf3 {[%clk 0:01:08.7]} 42... Ka4 {[%clk 0:01:42.2]} 43.
Kf2 {[%clk 0:01:09.6]} 43... Kxa5 {[%clk 0:01:42.9]} 44. Kf3 {[%clk 0:01:10.5]}
44... Kb5 {[%clk 0:01:43.6]} 45. Kf2 {[%clk 0:01:11.4]} 45... Kxc5 {[%clk
0:01:44.4]} 46. Kf3 {[%clk 0:01:12.3]} 46... a5 {[%clk 0:01:45.1]} 47. Kf2
{[%clk 0:01:13.2]} 47... a4 {[%clk 0:01:45.9]} 48. Kf3 {[%clk 0:01:14.1]} 48...
a3 {[%clk 0:01:46.6]} 49. Kf2 {[%clk 0:01:15]} 49... a2 {[%clk 0:01:47.3]} 50.
Kf3 {[%clk 0:01:15.9]} 50... a1=Q {[%clk 0:01:48]} 51. Kf2 {[%clk 0:01:16.8]}
51... Rc4 {[%clk 0:01:48.3]} 52. Kf3 {[%clk 0:01:17.7]} 52... b5 {[%clk
0:01:49]} 53. Kf2 {[%clk 0:01:18.6]} 53... b4 {[%clk 0:01:49.8]} 54. Kf3 {[%clk
0:01:19.5]} 54... b3 {[%clk 0:01:50.6]} 55. Kf2 {[%clk 0:01:20.4]} 55... b2
{[%clk 0:01:51.5]} 56. Kf3 {[%clk 0:01:21.3]} 56... b1=Q {[%clk 0:01:52.3]} 57.
Kf2 {[%clk 0:01:22.2]} 57... Kb5 {[%clk 0:01:52.8]} 58. Kf3 {[%clk 0:01:23.1]}
58... Rd4 {[%clk 0:01:53.1]} 59. Kf2 {[%clk 0:01:24]} 59... c5 {[%clk
0:01:53.8]} 60. Kf3 {[%clk 0:01:24.9]} 60... c4 {[%clk 0:01:54.5]} 61. Kf2
{[%clk 0:01:25.8]} 61... c3 {[%clk 0:01:55.2]} 62. Kf3 {[%clk 0:01:26.7]} 62...
c2 {[%clk 0:01:55.9]} 63. Kf2 {[%clk 0:00:47.7]} 63... c1=Q {[%clk 0:01:52.7]}
64. Kf3 {[%clk 0:00:48.6]} 64... g5 {[%clk 0:01:44]} 65. Kf2 {[%clk 0:00:49.5]}
65... g4 {[%clk 0:01:40.9]} 66. Ke2 {[%clk 0:00:48.7]} 66... g3 {[%clk
0:01:37.8]} 67. Kf3 {[%clk 0:00:48.2]} 67... Rxf4+ {[%clk 0:01:37.5]} 68. Ke2
{[%clk 0:00:47.6]} 68... Qd3+ {[%clk 0:01:31.9]} 69. Kxd3 {[%clk 0:00:44.9]}
69... Qac3+ {[%clk 0:01:31.9]} 70. Ke2 {[%clk 0:00:44.3]} 70... Qd3+ {[%clk
0:01:32.3]} 71. Kxd3 {[%clk 0:00:43.9]} 71... Qc4+ {[%clk 0:01:32.2]} 72. Kd2
{[%clk 0:00:43.4]} 72... Qd4+ {[%clk 0:01:32.4]} 73. Kc2 {[%clk 0:00:43.3]}
73... Rf2+ {[%clk 0:01:32.5]} 74. Kb3 {[%clk 0:00:43.1]} 74... Ka6 {[%clk
0:01:32.5]} 75. Ka3 {[%clk 0:00:42.2]} 75... Rf3+ {[%clk 0:01:31.6]} 76. Ka2
{[%clk 0:00:41.8]} 76... Qb4 {[%clk 0:01:26.9]} 77. gxf3 {[%clk 0:00:37]} 77...
g2 {[%clk 0:01:25.6]} 78. f4 {[%clk 0:00:37.4]} 78... Qb5 {[%clk 0:01:24.8]} 79.
Ka3 {[%clk 0:00:34.3]} 79... g1=Q {[%clk 0:01:25.1]} 80. Ka2 {[%clk 0:00:34.4]}
80... Qg4 {[%clk 0:01:23.7]} 81. Ka3 {[%clk 0:00:35.3]} 81... Qb6 {[%clk
0:01:22.3]} 82. hxg4 {[%clk 0:00:34.6]} 82... h3 {[%clk 0:01:22.3]} 83. gxf5
{[%clk 0:00:34]} 83... h2 {[%clk 0:01:22.6]} 84. f6 {[%clk 0:00:33.8]} 84...
h1=Q {[%clk 0:01:23]} 85. f7 {[%clk 0:00:31.2]} 85... Qf3+ {[%clk 0:01:23.2]}
86. Ka2 {[%clk 0:00:30.1]} 86... Qbb3+ {[%clk 0:01:23.6]} 87. Ka1 {[%clk
0:00:28.7]} 87... Qfc3# {[%clk 0:01:24.3]} 0-1

[Event "Early-Titled-Tuesday-Blitz-March-05-2024"]
[Site "Chess.com"]
[Date "2024.03.05"]
[Round "10"]
[White "ATM622"]
[Black "ljuks68"]
[Result "0-1"]
[WhiteElo "2510"]
[BlackElo "2423"]
[TimeControl "180+1"]
[EndTime "9:58:11 PST"]
[Termination "ljuks68 won by checkmate"]

1. d4 {[%clk 0:02:53.4]} 1... d5 {[%clk 0:02:59.8]} 2. c4 {[%clk 0:02:53.5]}
2... c6 {[%clk 0:02:59.8]} 3. Nf3 {[%clk 0:02:53.8]} 3... Nf6 {[%clk 0:03:00.3]}
4. Nbd2 {[%clk 0:02:53.9]} 4... Bf5 {[%clk 0:02:59.1]} 5. Nh4 {[%clk 0:02:54.3]}
5... Bg4 {[%clk 0:02:58]} 6. h3 {[%clk 0:02:54]} 6... Bh5 {[%clk 0:02:58.2]} 7.
g4 {[%clk 0:02:54.3]} 7... Bg6 {[%clk 0:02:58.8]} 8. Nxg6 {[%clk 0:02:54.5]}
8... hxg6 {[%clk 0:02:58.8]} 9. Bg2 {[%clk 0:02:55]} 9... e6 {[%clk 0:02:59.3]}
10. O-O {[%clk 0:02:53.3]} 10... Nbd7 {[%clk 0:02:58.3]} 11. b3 {[%clk
0:02:52.9]} 11... Be7 {[%clk 0:02:51.8]} 12. Bb2 {[%clk 0:02:52.6]} 12... O-O
{[%clk 0:02:51.7]} 13. Kh1 {[%clk 0:02:48.3]} 13... c5 {[%clk 0:02:45]} 14. dxc5
{[%clk 0:02:45.7]} 14... Nxc5 {[%clk 0:02:44.9]} 15. cxd5 {[%clk 0:02:46]} 15...
Nxd5 {[%clk 0:02:39.6]} 16. Nc4 {[%clk 0:02:46.4]} 16... Nf4 {[%clk 0:02:33.1]}
17. Ne5 {[%clk 0:02:29.5]} 17... Qxd1 {[%clk 0:02:06.5]} 18. Raxd1 {[%clk
0:02:19.7]} 18... Nxe2 {[%clk 0:02:06.8]} 19. Nd7 {[%clk 0:02:12.4]} 19... Rfd8
{[%clk 0:01:45.3]} 20. Nxc5 {[%clk 0:02:02.7]} 20... Bxc5 {[%clk 0:01:45.3]} 21.
Bxb7 {[%clk 0:02:03]} 21... Rab8 {[%clk 0:01:45.2]} 22. Bf3 {[%clk 0:01:59.1]}
22... Nd4 {[%clk 0:01:44.3]} 23. Bg2 {[%clk 0:01:56.7]} 23... e5 {[%clk
0:01:39.4]} 24. Rfe1 {[%clk 0:01:48.2]} 24... f6 {[%clk 0:01:37.6]} 25. Rc1
{[%clk 0:01:30.7]} 25... Bb4 {[%clk 0:01:11.4]} 26. Red1 {[%clk 0:01:30.4]}
26... Ne2 {[%clk 0:01:10.7]} 27. Ra1 {[%clk 0:01:13.1]} 27... Nf4 {[%clk
0:01:02.4]} 28. Bf1 {[%clk 0:01:06.8]} 28... Rbc8 {[%clk 0:00:36]} 29. Bc4+
{[%clk 0:01:00]} 29... Kh7 {[%clk 0:00:35.8]} 30. Kh2 {[%clk 0:00:58.7]} 30...
Bc5 {[%clk 0:00:19.6]} 31. Kg3 {[%clk 0:00:57.7]} 31... g5 {[%clk 0:00:20]} 32.
Kf3 {[%clk 0:00:52.1]} 32... Kg6 {[%clk 0:00:16.3]} 33. Ba6 {[%clk 0:00:38.5]}
33... Rb8 {[%clk 0:00:12.8]} 34. Bf1 {[%clk 0:00:33.3]} 34... Rbc8 {[%clk
0:00:09.9]} 35. Rac1 {[%clk 0:00:32.1]} 35... Bb6 {[%clk 0:00:09.9]} 36. Bc4
{[%clk 0:00:11]} 36... Nxh3 {[%clk 0:00:07.1]} 37. Be6 {[%clk 0:00:06.3]} 37...
Rxc1 {[%clk 0:00:06]} 38. Rxc1 {[%clk 0:00:04.9]} 38... Nf4 {[%clk 0:00:04.4]}
39. Bf5+ {[%clk 0:00:04.6]} 39... Kf7 {[%clk 0:00:05.1]} 40. Be4 {[%clk
0:00:03.6]} 40... Rd2 {[%clk 0:00:04.7]} 41. Rc2 {[%clk 0:00:03.4]} 41... Rd1
{[%clk 0:00:04.6]} 42. b4 {[%clk 0:00:03.3]} 42... Rh1 {[%clk 0:00:04.6]} 43.
Kg3 {[%clk 0:00:03.1]} 43... Rh3# {[%clk 0:00:04.8]} 0-1

[Event "Early-Titled-Tuesday-Blitz-March-05-2024"]
[Site "Chess.com"]
[Date "2024.03.05"]
[Round "10"]
[White "IlanSchnaider"]
[Black "Nuvas"]
[Result "0-1"]
[WhiteElo "2656"]
[BlackElo "2808"]
[TimeControl "180+1"]
[EndTime "9:58:13 PST"]
[Termination "Nuvas won by resignation"]

1. e4 {[%clk 0:03:00.9]} 1... e5 {[%clk 0:03:00.3]} 2. Nf3 {[%clk 0:03:01.1]}
2... Nc6 {[%clk 0:03:01]} 3. d4 {[%clk 0:03:00.7]} 3... exd4 {[%clk 0:03:01.1]}
4. Nxd4 {[%clk 0:03:01.6]} 4... Qf6 {[%clk 0:03:01.4]} 5. Nf3 {[%clk 0:03:01.2]}
5... Bb4+ {[%clk 0:03:01.1]} 6. c3 {[%clk 0:02:55.5]} 6... Bc5 {[%clk
0:03:01.5]} 7. Be2 {[%clk 0:02:42.2]} 7... h6 {[%clk 0:03:01.2]} 8. O-O {[%clk
0:02:38.4]} 8... d6 {[%clk 0:03:01.6]} 9. b4 {[%clk 0:02:34.8]} 9... Bb6 {[%clk
0:03:00.3]} 10. a4 {[%clk 0:02:34.5]} 10... a6 {[%clk 0:02:49.6]} 11. a5 {[%clk
0:02:28.4]} 11... Ba7 {[%clk 0:02:49.5]} 12. Bb2 {[%clk 0:02:25.2]} 12... Nge7
{[%clk 0:02:40.5]} 13. Nbd2 {[%clk 0:02:12.1]} 13... O-O {[%clk 0:02:39.4]} 14.
Qc2 {[%clk 0:02:11.9]} 14... Ng6 {[%clk 0:02:11.9]} 15. c4 {[%clk 0:01:41.1]}
15... Nd4 {[%clk 0:02:11.8]} 16. Nxd4 {[%clk 0:01:30.4]} 16... Bxd4 {[%clk
0:02:11.7]} 17. Bxd4 {[%clk 0:01:27.3]} 17... Qxd4 {[%clk 0:02:12.6]} 18. Nb3
{[%clk 0:01:09.7]} 18... Qf6 {[%clk 0:02:10.7]} 19. g3 {[%clk 0:00:55.8]} 19...
Bh3 {[%clk 0:02:01.4]} 20. Rfe1 {[%clk 0:00:52.1]} 20... Rfe8 {[%clk 0:01:52.9]}
21. Bf1 {[%clk 0:00:34.1]} 21... Bxf1 {[%clk 0:01:21.6]} 22. Rxf1 {[%clk
0:00:35]} 22... Ne5 {[%clk 0:01:22.2]} 23. f4 {[%clk 0:00:33.2]} 23... Nc6
{[%clk 0:01:21.5]} 24. b5 {[%clk 0:00:09.3]} 24... Nd4 {[%clk 0:01:21.1]} 25.
Nxd4 {[%clk 0:00:04.8]} 25... Qxd4+ {[%clk 0:01:22]} 26. Kg2 {[%clk 0:00:02.9]}
26... Rxe4 {[%clk 0:01:21.1]} 27. Rfd1 {[%clk 0:00:01.9]} 27... Qxc4 {[%clk
0:01:20.9]} 28. Qxc4 {[%clk 0:00:01.2]} 28... Rxc4 {[%clk 0:01:21.8]} 29. b6
{[%clk 0:00:01.6]} 29... cxb6 {[%clk 0:01:14.5]} 30. axb6 {[%clk 0:00:02.5]}
30... Rc6 {[%clk 0:01:14.3]} 31. Rab1 {[%clk 0:00:03]} 31... Rd8 {[%clk
0:01:10.4]} 32. Rd5 {[%clk 0:00:03]} 32... Rc5 {[%clk 0:01:10.9]} 33. Rd4 {[%clk
0:00:03.5]} 33... d5 {[%clk 0:01:11.2]} 34. Kf3 {[%clk 0:00:03.8]} 34... Rd6
{[%clk 0:01:02.2]} 35. Ke3 {[%clk 0:00:03.4]} 35... Rc3+ {[%clk 0:00:59.2]} 36.
Kd2 {[%clk 0:00:03]} 36... Rcc6 {[%clk 0:00:59.3]} 37. Ke3 {[%clk 0:00:02]}
37... Rxb6 {[%clk 0:00:56.4]} 38. Rxb6 {[%clk 0:00:02.9]} 38... Rxb6 {[%clk
0:00:57.1]} 39. Rxd5 {[%clk 0:00:03.7]} 39... g6 {[%clk 0:00:57.6]} 40. Rd7
{[%clk 0:00:02.6]} 40... a5 {[%clk 0:00:56.1]} 41. Rd8+ {[%clk 0:00:02]} 41...
Kg7 {[%clk 0:00:56.3]} 42. Ra8 {[%clk 0:00:02.9]} 42... Rb5 {[%clk 0:00:56.4]}
43. h3 {[%clk 0:00:02.9]} 43... h5 {[%clk 0:00:56]} 44. Kf3 {[%clk 0:00:02.8]}
44... b6 {[%clk 0:00:56.3]} 45. g4 {[%clk 0:00:03.2]} 45... Rb3+ {[%clk
0:00:55.8]} 46. Kg2 {[%clk 0:00:03.8]} 46... hxg4 {[%clk 0:00:55.7]} 47. hxg4
{[%clk 0:00:04.1]} 47... Rb4 {[%clk 0:00:56.2]} 48. Kf3 {[%clk 0:00:04.2]} 48...
a4 {[%clk 0:00:56.1]} 49. Ke3 {[%clk 0:00:04.1]} 49... b5 {[%clk 0:00:56.1]} 50.
Ra7 {[%clk 0:00:04]} 50... Rb3+ {[%clk 0:00:56.1]} 51. Ke4 {[%clk 0:00:03.8]}
51... a3 {[%clk 0:00:56.8]} 52. f5 {[%clk 0:00:03.6]} 52... gxf5+ {[%clk
0:00:56.8]} 53. gxf5 {[%clk 0:00:04.5]} 53... b4 {[%clk 0:00:55.6]} 54. Ke5
{[%clk 0:00:05]} 54... Rb2 {[%clk 0:00:55.8]} 55. f6+ {[%clk 0:00:05.1]} 55...
Kg6 {[%clk 0:00:55.8]} 56. Ra8 {[%clk 0:00:06]} 56... Re2+ {[%clk 0:00:54.8]}
57. Kf4 {[%clk 0:00:05.9]} 57... a2 {[%clk 0:00:54.2]} 58. Rg8+ {[%clk 0:00:03]}
58... Kxf6 {[%clk 0:00:54.1]} 59. Ra8 {[%clk 0:00:03.9]} 59... b3 {[%clk
0:00:54.4]} 60. Kf3 {[%clk 0:00:04.1]} 60... Rc2 {[%clk 0:00:53.9]} 61. Ra6+
{[%clk 0:00:04.1]} 61... Kg7 {[%clk 0:00:53.9]} 62. Ke3 {[%clk 0:00:04.9]} 62...
b2 {[%clk 0:00:54.2]} 63. Rxa2 {[%clk 0:00:05.2]} 63... b1=Q {[%clk 0:00:54.5]}
64. Rxc2 {[%clk 0:00:05.7]} 64... Qxc2 {[%clk 0:00:55.4]} 0-1

[Event "Early-Titled-Tuesday-Blitz-March-05-2024"]
[Site "Chess.com"]
[Date "2024.03.05"]
[Round "10"]
[White "PeshkaCh"]
[Black "bescmelasti"]
[Result "1/2-1/2"]
[WhiteElo "2815"]
[BlackElo "2668"]
[TimeControl "180+1"]
[EndTime "9:58:19 PST"]
[Termination "Game drawn by repetition"]

1. e4 {[%clk 0:03:00.9]} 1... c5 {[%clk 0:02:58]} 2. b3 {[%clk 0:03:01.1]} 2...
Nc6 {[%clk 0:02:56.5]} 3. Bb2 {[%clk 0:03:01.1]} 3... d5 {[%clk 0:02:45.7]} 4.
exd5 {[%clk 0:02:54.7]} 4... Qxd5 {[%clk 0:02:46.6]} 5. Nc3 {[%clk 0:02:49.6]}
5... Qd8 {[%clk 0:02:45.2]} 6. Bb5 {[%clk 0:02:47]} 6... Bd7 {[%clk 0:02:44.8]}
7. Nf3 {[%clk 0:02:46.8]} 7... Nf6 {[%clk 0:02:44.8]} 8. O-O {[%clk 0:02:46.7]}
8... e6 {[%clk 0:02:45]} 9. Bxc6 {[%clk 0:02:21.3]} 9... Bxc6 {[%clk 0:02:44.9]}
10. Ne5 {[%clk 0:02:21.8]} 10... Rc8 {[%clk 0:02:42.4]} 11. Nxc6 {[%clk
0:02:19.9]} 11... Rxc6 {[%clk 0:02:43.3]} 12. Re1 {[%clk 0:02:18.7]} 12... Be7
{[%clk 0:02:42.9]} 13. d3 {[%clk 0:02:06.2]} 13... O-O {[%clk 0:02:43.1]} 14.
Qf3 {[%clk 0:02:05.8]} 14... Qd7 {[%clk 0:02:35.2]} 15. Ne4 {[%clk 0:02:03]}
15... Nxe4 {[%clk 0:02:32.9]} 16. Rxe4 {[%clk 0:02:03.9]} 16... b5 {[%clk
0:02:06.2]} 17. Rae1 {[%clk 0:01:59.1]} 17... c4 {[%clk 0:01:58.1]} 18. Rd4
{[%clk 0:01:44]} 18... Qc8 {[%clk 0:01:40.3]} 19. dxc4 {[%clk 0:01:28.1]} 19...
bxc4 {[%clk 0:01:41.2]} 20. bxc4 {[%clk 0:00:41.6]} 20... Rxc4 {[%clk
0:01:27.1]} 21. Rxc4 {[%clk 0:00:42.5]} 21... Qxc4 {[%clk 0:01:26.9]} 22. Qg3
{[%clk 0:00:43]} 22... f6 {[%clk 0:01:18.7]} 23. Qb3 {[%clk 0:00:42.4]} 23...
Rc8 {[%clk 0:01:07.5]} 24. Rxe6 {[%clk 0:00:21.9]} 24... Qxb3 {[%clk 0:01:07]}
25. cxb3 {[%clk 0:00:20.8]} 25... Rc2 {[%clk 0:01:07.4]} 26. Rxe7 {[%clk
0:00:18]} 26... Rxb2 {[%clk 0:01:06.8]} 27. g4 {[%clk 0:00:17.8]} 27... Rxa2
{[%clk 0:01:07]} 28. Rb7 {[%clk 0:00:18.2]} 28... a5 {[%clk 0:00:55.5]} 29. Kg2
{[%clk 0:00:14.4]} 29... a4 {[%clk 0:00:55.2]} 30. bxa4 {[%clk 0:00:13.3]} 30...
Rxa4 {[%clk 0:00:56.1]} 31. Kg3 {[%clk 0:00:13.9]} 31... Kf8 {[%clk 0:00:50.8]}
32. h4 {[%clk 0:00:13.8]} 32... Re4 {[%clk 0:00:50.4]} 33. f3 {[%clk 0:00:13.6]}
33... Re7 {[%clk 0:00:50.4]} 34. Rb5 {[%clk 0:00:13.3]} 34... Kf7 {[%clk
0:00:50.6]} 35. h5 {[%clk 0:00:13.3]} 35... g6 {[%clk 0:00:49.8]} 36. hxg6+
{[%clk 0:00:13.3]} 36... hxg6 {[%clk 0:00:50.3]} 37. Kf4 {[%clk 0:00:12.4]}
37... Rd7 {[%clk 0:00:48.2]} 38. Rb4 {[%clk 0:00:12]} 38... g5+ {[%clk
0:00:46.7]} 39. Kg3 {[%clk 0:00:07.6]} 39... Kg6 {[%clk 0:00:46.9]} 40. Rb5
{[%clk 0:00:07.6]} 40... Re7 {[%clk 0:00:46.8]} 41. Kf2 {[%clk 0:00:08]} 41...
Rd7 {[%clk 0:00:45.4]} 42. Ke3 {[%clk 0:00:07.8]} 42... Re7+ {[%clk 0:00:44.7]}
43. Kd3 {[%clk 0:00:08.5]} 43... Rd7+ {[%clk 0:00:45.1]} 44. Ke4 {[%clk
0:00:09.2]} 44... Re7+ {[%clk 0:00:45.2]} 45. Kd4 {[%clk 0:00:09.4]} 45... Rd7+
{[%clk 0:00:45.6]} 46. Rd5 {[%clk 0:00:09.2]} 46... Rxd5+ {[%clk 0:00:41.4]} 47.
Kxd5 {[%clk 0:00:10.1]} 47... f5 {[%clk 0:00:42.3]} 48. Ke6 {[%clk 0:00:10.2]}
48... fxg4 {[%clk 0:00:41.9]} 49. fxg4 {[%clk 0:00:11.1]} 49... Kg7 {[%clk
0:00:42]} 50. Ke5 {[%clk 0:00:09.6]} 50... Kf7 {[%clk 0:00:41.1]} 51. Kf5 {[%clk
0:00:10]} 51... Kf8 {[%clk 0:00:41.1]} 52. Kf6 {[%clk 0:00:06.5]} 52... Kg8
{[%clk 0:00:39.9]} 53. Kg6 {[%clk 0:00:07.2]} 53... Kf8 {[%clk 0:00:40.1]} 54.
Kh5 {[%clk 0:00:07.6]} 54... Kf7 {[%clk 0:00:39.9]} 55. Kxg5 {[%clk 0:00:07.8]}
55... Kg7 {[%clk 0:00:40.2]} 56. Kf5 {[%clk 0:00:08.4]} 56... Kf7 {[%clk
0:00:40.6]} 57. Kg5 {[%clk 0:00:08.5]} 57... Kg7 {[%clk 0:00:41.1]} 58. Kh5
{[%clk 0:00:09.4]} 58... Kh7 {[%clk 0:00:41.5]} 59. g5 {[%clk 0:00:10.3]} 59...
Kg7 {[%clk 0:00:41.9]} 60. Kg4 {[%clk 0:00:11.2]} 60... Kg6 {[%clk 0:00:42]} 61.
Kf4 {[%clk 0:00:12.1]} 61... Kg7 {[%clk 0:00:42.5]} 62. Kf5 {[%clk 0:00:13]}
62... Kf7 {[%clk 0:00:43]} 63. Ke5 {[%clk 0:00:13.5]} 63... Kg6 {[%clk
0:00:42.6]} 64. Kf4 {[%clk 0:00:14.4]} 64... Kg7 {[%clk 0:00:42.8]} 65. Kf5
{[%clk 0:00:15.3]} 65... Kf7 {[%clk 0:00:43.2]} 66. g6+ {[%clk 0:00:16]} 66...
Kg7 {[%clk 0:00:43.6]} 67. Kg5 {[%clk 0:00:16.9]} 67... Kg8 {[%clk 0:00:44.1]}
68. Kf6 {[%clk 0:00:17.8]} 68... Kf8 {[%clk 0:00:43.4]} 69. Kf5 {[%clk
0:00:18.4]} 69... Kg7 {[%clk 0:00:43.1]} 70. Kg5 {[%clk 0:00:19.3]} 70... Kg8
{[%clk 0:00:43.6]} 71. Kh5 {[%clk 0:00:20.1]} 71... Kg7 {[%clk 0:00:43.5]} 72.
Kg5 {[%clk 0:00:20.8]} 1/2-1/2

[Event "Early-Titled-Tuesday-Blitz-March-05-2024"]
[Site "Chess.com"]
[Date "2024.03.05"]
[Round "10"]
[White "Penafiel-Josselyne02"]
[Black "shirovin"]
[Result "1-0"]
[WhiteElo "2053"]
[BlackElo "2051"]
[TimeControl "180+1"]
[EndTime "9:58:19 PST"]
[Termination "Penafiel-Josselyne02 won on time"]

1. d4 {[%clk 0:02:44.5]} 1... Nf6 {[%clk 0:02:57.5]} 2. c4 {[%clk 0:02:42.9]}
2... g6 {[%clk 0:02:57.9]} 3. Nc3 {[%clk 0:02:42.4]} 3... d5 {[%clk 0:02:58.2]}
4. cxd5 {[%clk 0:02:42.4]} 4... Nxd5 {[%clk 0:02:58.7]} 5. Bd2 {[%clk
0:02:42.9]} 5... c5 {[%clk 0:02:53.3]} 6. e4 {[%clk 0:02:12.6]} 6... Nxc3 {[%clk
0:02:35.3]} 7. Bxc3 {[%clk 0:02:09.7]} 7... cxd4 {[%clk 0:02:35.4]} 8. Bb5+
{[%clk 0:02:02.9]} 8... Nc6 {[%clk 0:02:24.7]} 9. Qxd4 {[%clk 0:02:00.2]} 9...
Qxd4 {[%clk 0:02:16.1]} 10. Bxd4 {[%clk 0:01:57.4]} 10... e5 {[%clk 0:02:03.6]}
11. Bxe5 {[%clk 0:01:54.2]} 11... Bb4+ {[%clk 0:02:04.2]} 12. Kf1 {[%clk
0:01:42.9]} 12... O-O {[%clk 0:02:02.6]} 13. Bf6 {[%clk 0:01:31.6]} 13... Re8
{[%clk 0:01:53.1]} 14. f3 {[%clk 0:01:29.1]} 14... Re6 {[%clk 0:01:32.9]} 15.
Bc3 {[%clk 0:01:21.9]} 15... Bxc3 {[%clk 0:01:30.1]} 16. bxc3 {[%clk 0:01:22.8]}
16... a6 {[%clk 0:01:28.1]} 17. Bc4 {[%clk 0:01:17.6]} 17... Rd6 {[%clk
0:01:26.7]} 18. Ne2 {[%clk 0:01:08]} 18... Rd2 {[%clk 0:01:24.3]} 19. Ke1 {[%clk
0:01:03.5]} 19... Rb2 {[%clk 0:01:22.8]} 20. Kf2 {[%clk 0:00:54.1]} 20... Be6
{[%clk 0:01:04.4]} 21. Bxe6 {[%clk 0:00:50.3]} 21... fxe6 {[%clk 0:01:03.8]} 22.
Rhb1 {[%clk 0:00:46.3]} 22... Rxb1 {[%clk 0:00:50.9]} 23. Rxb1 {[%clk
0:00:47.2]} 23... b5 {[%clk 0:00:50.9]} 24. Rd1 {[%clk 0:00:43.1]} 24... Na5
{[%clk 0:00:49.9]} 25. Rd7 {[%clk 0:00:35.5]} 25... Rc8 {[%clk 0:00:46.3]} 26.
Re7 {[%clk 0:00:19.8]} 26... Rc6 {[%clk 0:00:45]} 27. Ke3 {[%clk 0:00:17.2]}
27... Nc4+ {[%clk 0:00:44]} 28. Kf4 {[%clk 0:00:14.9]} 28... h6 {[%clk
0:00:37.5]} 29. e5 {[%clk 0:00:12.6]} 29... Kf8 {[%clk 0:00:33.9]} 30. Nd4
{[%clk 0:00:08.1]} 30... Kxe7 {[%clk 0:00:21.3]} 31. Nxc6+ {[%clk 0:00:07.4]}
31... Kf7 {[%clk 0:00:20.3]} 32. Nd4 {[%clk 0:00:06.3]} 32... Nd2 {[%clk
0:00:17.6]} 33. Nb3 {[%clk 0:00:03.3]} 33... Nb1 {[%clk 0:00:16]} 34. Nc5 {[%clk
0:00:02.3]} 34... a5 {[%clk 0:00:11.5]} 35. Ne4 {[%clk 0:00:02.5]} 35... b4
{[%clk 0:00:07.6]} 36. cxb4 {[%clk 0:00:02.3]} 36... axb4 {[%clk 0:00:07.4]} 37.
Nd6+ {[%clk 0:00:02.6]} 37... Ke7 {[%clk 0:00:04.6]} 38. Nc4 {[%clk 0:00:02.3]}
38... Nc3 {[%clk 0:00:04.5]} 39. a3 {[%clk 0:00:02.2]} 39... b3 {[%clk
0:00:03.6]} 40. Ke3 {[%clk 0:00:02.3]} 40... Na4 {[%clk 0:00:03.6]} 41. Kd2
{[%clk 0:00:01.3]} 41... Kd7 {[%clk 0:00:01.8]} 42. Kc1 {[%clk 0:00:01.2]} 42...
Kc6 {[%clk 0:00:01.8]} 43. Nb2 {[%clk 0:00:01.5]} 43... Kb5 {[%clk 0:00:01.4]}
44. Nxa4 {[%clk 0:00:01.5]} 44... Kxa4 {[%clk 0:00:01.4]} 45. Kb2 {[%clk
0:00:02.4]} 1-0